fUSD/lending_fUSD_20240104
["ID","MTS","AMOUNT","RATE_DAILY","PERIOD"]
[310134606,1704381041721,-298.66,0.00032306,2]
[310134607,1704381041730,-309.13673476,0.00032344,4]
[310134608,1704381041741,-411.17,0.00032345,2]
[310134609,1704381041750,-351.27,0.00032424,2]
[310134610,1704381041759,-500.0,0.00032584,2]
[310134611,1704381041769,-156.94,0.00032607,2]
[310134612,1704381041778,-593.99,0.00032636,2]
[310134613,1704381041788,-151.69064531,0.00032774,2]
[310134614,1704381041797,-152.85994222,0.00032775,2]
[310134615,1704381041807,-972357.91282168,0.00032776,3]
[310134616,1704381041816,-250.0,0.00032776,2]
[310134617,1704381041828,-55555.0,0.00032776,3]
[310134618,1704381041838,-1259.384794,0.00032781,7]
[310134619,1704381041847,-160.10479898,0.000328,2]
[310134620,1704381041857,-157.59,0.0003281,2]
[310134621,1704381041867,-9650.9122724,0.00032819,2]
[310134622,1704381041877,-4890.42084288,0.00032819,2]
[310134623,1704381041886,-309.13673476,0.00032872,4]
[310134624,1704381041896,-185.32628498,0.00032873,2]
[310134625,1704381041906,-2077.59041131,0.00032875,4]
[310134626,1704381041916,-151.0,0.00032876,7]
[310134627,1704381041928,-156.016898,0.00032876,7]
[310134628,1704381041938,-151.0,0.00032876,7]
[310134629,1704381041948,-267.184075,0.00032876,7]
[310134630,1704381041958,-151.0,0.00032876,7]
[310134631,1704381041968,-526.19,0.00032876,2]
[310134632,1704381041978,-500.0,0.00032876,2]
[310134633,1704381041987,-500.0,0.00032876,2]
[310134634,1704381041997,-500.0,0.00032876,2]
[310134635,1704381042006,-500.0,0.00032876,2]
[310134636,1704381042016,-500.0,0.00032876,2]
[310134637,1704381042026,-500.0,0.00032876,2]
[310134638,1704381042036,-500.0,0.00032876,2]
[310134639,1704381042046,-500.0,0.00032876,2]
[310134640,1704381042055,-325.43454612,0.00032876,2]
[310134641,1704381042065,-500.0,0.00032876,2]
[310134642,1704381042075,-500.0,0.00032876,2]
[310134643,1704381042085,-500.0,0.00032876,2]
[310134644,1704381042095,-664.92,0.00032876,2]
[310134645,1704381042105,-500.0,0.00032876,2]
[310134646,1704381042114,-500.0,0.00032876,2]
[310134647,1704381042124,-976.94,0.00032876,2]
[310134648,1704381042134,-500.0,0.00032876,2]
[310134652,1704381042145,-500.0,0.00032876,2]
[310134656,1704381042154,-1313.16,0.00032876,2]
[310134659,1704381042164,-500.0,0.00032876,2]
[310134662,1704381042174,-500.0,0.00032876,2]
[310134665,1704381042184,-304.80337399,0.00032876,2]
[310134667,1704381042194,-500.0,0.00032876,2]
[310134670,1704381042203,-500.0,0.00032876,2]
[310134671,1704381042213,-500.0,0.00032876,2]
[310134672,1704381042222,-500.0,0.00032876,2]
[310134673,1704381042231,-500.0,0.00032876,2]
[310134675,1704381042241,-552.52,0.00032876,2]
[310134677,1704381042251,-500.0,0.00032876,2]
[310134678,1704381042261,-500.0,0.00032876,2]
[310134679,1704381042270,-626.31,0.00032876,2]
[310134680,1704381042279,-500.0,0.00032876,2]
[310134681,1704381042289,-526.17669288,0.00032876,2]
[310134682,1704381042298,-269.0528371,0.00032876,2]
[310134683,1704381042308,-207.10935097,0.00032876,2]
[310134684,1704381042318,-396.52590575,0.00032876,2]
[310134685,1704381042328,-500.0,0.00032876,2]
[310134686,1704381042337,-500.0,0.00032876,2]
[310134687,1704381042347,-500.0,0.00032876,2]
[310134688,1704381042357,-500.0,0.00032876,2]
[310134689,1704381042367,-500.0,0.00032876,2]
[310134690,1704381042376,-641.07269672,0.00032876,2]
[310134691,1704381042386,-829.09,0.00032876,2]
[310134692,1704381042396,-500.0,0.00032876,2]
[310134693,1704381042405,-500.0,0.00032876,2]
[310134694,1704381042416,-500.0,0.00032876,2]
[310134695,1704381042427,-500.0,0.00032876,2]
[310134696,1704381042436,-500.0,0.00032876,2]
[310134697,1704381042446,-500.0,0.00032876,2]
[310134698,1704381042455,-500.0,0.00032876,2]
[310134699,1704381042465,-244.51822293,0.00032876,2]
[310134700,1704381042474,-500.0,0.00032876,2]
[310134701,1704381042483,-500.0,0.00032876,2]
[310134702,1704381042492,-500.0,0.00032876,2]
[310134703,1704381042503,-758.02,0.00032876,2]
[310134704,1704381042512,-705.84,0.00032876,2]
[310134705,1704381042522,-500.0,0.00032876,2]
[310134706,1704381042531,-739.48,0.00032876,2]
[310134707,1704381042540,-928.98,0.00032876,2]
[310134708,1704381042550,-500.0,0.00032876,2]
[310134709,1704381042560,-500.0,0.00032876,2]
[310134710,1704381042569,-500.0,0.00032876,2]
[310134711,1704381042578,-500.0,0.00032876,2]
[310134712,1704381042587,-405.16811399,0.00032876,2]
[310134713,1704381042597,-500.0,0.00032876,2]
[310134714,1704381042606,-500.0,0.00032876,2]
[310134715,1704381042616,-883.62,0.00032876,2]
[310134716,1704381042626,-500.0,0.00032876,2]
[310134717,1704381042635,-528.63573154,0.00032876,2]
[310134718,1704381042646,-707.81,0.00032876,2]
[310134719,1704381042656,-500.0,0.00032876,2]
[310134720,1704381042666,-500.0,0.00032876,2]
[310134721,1704381042677,-500.0,0.00032876,2]
[310134722,1704381042687,-500.0,0.00032876,2]
[310134723,1704381042697,-500.0,0.00032876,2]
[310134724,1704381042707,-500.0,0.00032876,2]
[310134725,1704381042716,-500.0,0.00032876,2]
[310134726,1704381042725,-500.0,0.00032876,2]
[310134727,1704381042735,-500.0,0.00032876,2]
[310134728,1704381042745,-500.0,0.00032876,2]
[310134729,1704381042758,-500.0,0.00032876,2]
[310134730,1704381042767,-500.0,0.00032876,2]
[310134731,1704381042777,-500.0,0.00032876,2]
[310134732,1704381042786,-500.0,0.00032876,2]
[310134733,1704381042797,-566.76,0.00032876,2]
[310134734,1704381042808,-500.0,0.00032876,2]
[310134735,1704381042819,-500.0,0.00032876,2]
[310134737,1704381042829,-500.0,0.00032876,2]
[310134739,1704381042838,-500.0,0.00032876,2]
[310134740,1704381042847,-500.0,0.00032876,2]
[310134741,1704381042857,-500.0,0.00032876,2]
[310134742,1704381042866,-506.49,0.00032876,2]
[310134743,1704381042876,-500.0,0.00032876,2]
[310134744,1704381042885,-500.0,0.00032876,2]
[310134745,1704381042895,-270.14347799,0.00032876,2]
[310134746,1704381042905,-500.0,0.00032876,2]
[310134747,1704381042914,-500.0,0.00032876,2]
[310134749,1704381042925,-500.0,0.00032876,2]
[310134751,1704381042935,-500.0,0.00032876,2]
[310134752,1704381042945,-560.0,0.00032876,2]
[310134753,1704381042954,-500.0,0.00032876,2]
[310134754,1704381042963,-532.33936766,0.00032876,2]
[310134755,1704381042972,-218.37134127,0.00032876,2]
[310134756,1704381042981,-656.18,0.00032876,2]
[310134757,1704381042991,-500.0,0.00032876,2]
[310134758,1704381043002,-652.25,0.00032876,2]
[310134759,1704381043012,-588.93,0.00032876,2]
[310134760,1704381043022,-500.0,0.00032876,2]
[310134761,1704381043032,-500.0,0.00032876,2]
[310134762,1704381043042,-500.0,0.00032876,2]
[310134763,1704381043053,-637.11,0.00032876,2]
[310134764,1704381043063,-500.0,0.00032876,2]
[310134765,1704381043074,-856.33,0.00032876,2]
[310134766,1704381043084,-500.0,0.00032876,2]
[310134767,1704381043093,-514.92,0.00032876,2]
[310134768,1704381043103,-500.0,0.00032876,2]
[310134769,1704381043113,-500.0,0.00032876,2]
[310134770,1704381043123,-845.85,0.00032876,2]
[310134771,1704381043133,-500.0,0.00032876,2]
[310134772,1704381043144,-500.0,0.00032876,2]
[310134773,1704381043154,-500.0,0.00032876,2]
[310134774,1704381043164,-1610.87,0.00032876,2]
[310134775,1704381043174,-500.0,0.00032876,2]
[310134776,1704381043183,-1103.0,0.00032876,2]
[310134777,1704381043194,-814.67,0.00032876,2]
[310134778,1704381043203,-856.75,0.00032876,2]
[310134779,1704381043212,-500.0,0.00032876,2]
[310134780,1704381043222,-500.0,0.00032876,2]
[310134781,1704381043232,-187.76418888,0.00032876,2]
[310134782,1704381043242,-641.42,0.00032876,2]
[310134783,1704381043253,-500.0,0.00032876,2]
[310134784,1704381043263,-500.0,0.00032876,2]
[310134785,1704381043273,-500.0,0.00032876,2]
[310134786,1704381043282,-500.0,0.00032876,2]
[310134787,1704381043292,-500.0,0.00032876,2]
[310134788,1704381043303,-500.0,0.00032876,2]
[310134789,1704381043312,-1223.11,0.00032876,2]
[310134790,1704381043321,-500.0,0.00032876,2]
[310134791,1704381043330,-500.0,0.00032876,2]
[310134792,1704381043340,-500.0,0.00032876,2]
[310134793,1704381043350,-981.86,0.00032876,2]
[310134794,1704381043359,-500.0,0.00032876,2]
[310134795,1704381043368,-500.0,0.00032876,2]
[310134796,1704381043378,-580.44,0.00032876,2]
[310134797,1704381043387,-500.0,0.00032876,2]
[310134798,1704381043397,-500.0,0.00032876,2]
[310134799,1704381043407,-952.54,0.00032876,2]
[310134800,1704381043416,-519.25254095,0.00032876,2]
[310134801,1704381043427,-500.0,0.00032876,2]
[310134802,1704381043436,-500.0,0.00032876,2]
[310134803,1704381043445,-500.0,0.00032876,2]
[310134804,1704381043454,-500.0,0.00032876,2]
[310134805,1704381043464,-869.62,0.00032876,2]
[310134806,1704381043475,-500.0,0.00032876,2]
[310134807,1704381043484,-500.0,0.00032876,2]
[310134808,1704381043494,-587.36,0.00032876,2]
[310134809,1704381043503,-500.0,0.00032876,2]
[310134810,1704381043513,-500.0,0.00032876,2]
[310134811,1704381043523,-500.0,0.00032876,2]
[310134812,1704381043532,-1285.64,0.00032876,2]
[310134813,1704381043542,-500.0,0.00032876,2]
[310134814,1704381043551,-241.00611502,0.00032876,2]
[310134815,1704381043560,-1357.55,0.00032876,2]
[310134816,1704381043569,-518.32785007,0.00032876,2]
[310134817,1704381043579,-500.0,0.00032876,2]
[310134818,1704381043587,-1169.7,0.00032876,2]
[310134819,1704381043597,-500.0,0.00032876,2]
[310134820,1704381043607,-500.0,0.00032876,2]
[310134821,1704381043619,-500.0,0.00032876,2]
[310134822,1704381043630,-500.0,0.00032876,2]
[310134823,1704381043639,-500.0,0.00032876,2]
[310134824,1704381043649,-500.0,0.00032876,2]
[310134825,1704381043659,-707.03,0.00032876,2]
[310134826,1704381043669,-500.0,0.00032876,2]
[310134827,1704381043680,-635.54,0.00032876,2]
[310134828,1704381043690,-586.38,0.00032876,2]
[310134829,1704381043699,-500.0,0.00032876,2]
[310134830,1704381043708,-539.79,0.00032876,2]
[310134831,1704381043717,-500.0,0.00032876,2]
[310134832,1704381043728,-500.0,0.00032876,2]
[310134833,1704381043737,-500.0,0.00032876,2]
[310134834,1704381043747,-500.0,0.00032876,2]
[310134835,1704381043756,-500.0,0.00032876,2]
[310134836,1704381043765,-500.0,0.00032876,2]
[310134837,1704381043775,-500.0,0.00032876,2]
[310134838,1704381043784,-500.0,0.00032876,2]
[310134839,1704381043793,-500.0,0.00032876,2]
[310134840,1704381043803,-500.0,0.00032876,2]
[310134841,1704381043812,-500.0,0.00032876,2]
[310134842,1704381043821,-963.75,0.00032876,2]
[310134843,1704381043831,-400.58797815,0.00032876,2]
[310134844,1704381043840,-500.07,0.00032876,2]
[310134845,1704381043850,-500.0,0.00032876,2]
[310134846,1704381043859,-606.02,0.00032876,2]
[310134847,1704381043868,-500.0,0.00032876,2]
[310134848,1704381043878,-500.0,0.00032876,2]
[310134849,1704381043887,-500.0,0.00032876,2]
[310134850,1704381043896,-3100.13,0.00032876,2]
[310134851,1704381043905,-500.0,0.00032876,2]
[310134852,1704381043915,-500.0,0.00032876,2]
[310134853,1704381043927,-500.0,0.00032876,2]
[310134854,1704381043937,-500.0,0.00032876,2]
[310134855,1704381043948,-500.0,0.00032876,2]
[310134856,1704381043958,-500.0,0.00032876,2]
[310134857,1704381043968,-500.0,0.00032876,2]
[310134858,1704381043979,-500.0,0.00032876,2]
[310134859,1704381043989,-500.0,0.00032876,2]
[310134860,1704381043999,-500.0,0.00032876,2]
[310134861,1704381044008,-500.0,0.00032876,2]
[310134862,1704381044018,-500.0,0.00032876,2]
[310134863,1704381044028,-500.0,0.00032876,2]
[310134864,1704381044037,-500.0,0.00032876,2]
[310134865,1704381044046,-500.0,0.00032876,2]
[310134866,1704381044056,-500.0,0.00032876,2]
[310134867,1704381044065,-500.0,0.00032876,2]
[310134868,1704381044075,-500.0,0.00032876,2]
[310134869,1704381044084,-673.77,0.00032876,2]
[310134870,1704381044093,-1118.34,0.00032876,2]
[310134871,1704381044102,-1291.44,0.00032876,2]
[310134872,1704381044113,-823.53,0.00032876,2]
[310134873,1704381044123,-500.0,0.00032876,2]
[310134874,1704381044134,-500.0,0.00032876,2]
[310134875,1704381044145,-500.0,0.00032876,2]
[310134876,1704381044155,-500.0,0.00032876,2]
[310134877,1704381044164,-500.0,0.00032876,2]
[310134878,1704381044174,-1271.74,0.00032876,2]
[310134879,1704381044184,-500.0,0.00032876,2]
[310134880,1704381044193,-500.0,0.00032876,2]
[310134881,1704381044202,-500.0,0.00032876,2]
[310134882,1704381044211,-500.0,0.00032876,2]
[310134883,1704381044220,-3526.57,0.00032876,2]
[310134884,1704381044229,-500.0,0.00032876,2]
[310134885,1704381044238,-631.53,0.00032876,2]
[310134886,1704381044247,-591.31,0.00032876,2]
[310134887,1704381044257,-1380.91,0.00032876,2]
[310134888,1704381044267,-1537.7,0.00032876,2]
[310134889,1704381044278,-500.0,0.00032876,2]
[310134890,1704381044287,-500.0,0.00032876,2]
[310134891,1704381044298,-500.0,0.00032876,2]
[310134892,1704381044307,-500.0,0.00032876,2]
[310134893,1704381044317,-500.0,0.00032876,2]
[310134894,1704381044327,-500.0,0.00032876,2]
[310134895,1704381044336,-569.33892963,0.00032876,2]
[310134896,1704381044345,-563.72,0.00032876,2]
[310134897,1704381044355,-500.0,0.00032876,2]
[310134898,1704381044364,-500.0,0.00032876,2]
[310134899,1704381044373,-500.0,0.00032876,2]
[310134900,1704381044383,-500.0,0.00032876,2]
[310134901,1704381044394,-500.0,0.00032876,2]
[310134902,1704381044404,-1181.73,0.00032876,2]
[310134903,1704381044414,-500.0,0.00032876,2]
[310134904,1704381044423,-500.0,0.00032876,2]
[310134905,1704381044432,-500.0,0.00032876,2]
[310134906,1704381044441,-500.0,0.00032876,2]
[310134907,1704381044451,-500.0,0.00032876,2]
[310134908,1704381044461,-500.0,0.00032876,2]
[310134909,1704381044470,-500.0,0.00032876,2]
[310134910,1704381044480,-500.0,0.00032876,2]
[310134911,1704381044490,-500.0,0.00032876,2]
[310134912,1704381044499,-500.0,0.00032876,2]
[310134913,1704381044509,-500.0,0.00032876,2]
[310134914,1704381044518,-500.0,0.00032876,2]
[310134915,1704381044527,-1833.77,0.00032876,2]
[310134916,1704381044536,-500.0,0.00032876,2]
[310134917,1704381044547,-500.0,0.00032876,2]
[310134918,1704381044557,-500.0,0.00032876,2]
[310134919,1704381044567,-500.0,0.00032876,2]
[310134920,1704381044576,-500.0,0.00032876,2]
[310134921,1704381044586,-500.0,0.00032876,2]
[310134922,1704381044596,-500.0,0.00032876,2]
[310134923,1704381044606,-500.0,0.00032876,2]
[310134924,1704381044617,-1033.82,0.00032876,2]
[310134925,1704381044628,-1208.25,0.00032876,2]
[310134926,1704381044639,-500.0,0.00032876,2]
[310134927,1704381044649,-574.37,0.00032876,2]
[310134928,1704381044659,-500.0,0.00032876,2]
[310134929,1704381044668,-500.0,0.00032876,2]
[310134930,1704381044678,-500.0,0.00032876,2]
[310134931,1704381044688,-886.91,0.00032876,2]
[310134932,1704381044697,-500.0,0.00032876,2]
[310134933,1704381044706,-500.0,0.00032876,2]
[310134934,1704381044715,-668.42,0.00032876,2]
[310134935,1704381044725,-826.45,0.00032876,2]
[310134936,1704381044734,-1186.41,0.00032876,2]
[310134937,1704381044744,-750.85,0.00032876,2]
[310134938,1704381044757,-1079.57,0.00032876,2]
[310134939,1704381044766,-500.0,0.00032876,2]
[310134940,1704381044775,-1085.05,0.00032876,2]
[310134941,1704381044784,-500.0,0.00032876,2]
[310134942,1704381044795,-792.35,0.00032876,2]
[310134943,1704381044806,-500.0,0.00032876,2]
[310134944,1704381044815,-661.39,0.00032876,2]
[310134945,1704381044826,-645.04,0.00032876,2]
[310134946,1704381044838,-500.0,0.00032876,2]
[310134947,1704381044848,-500.0,0.00032876,2]
[310134948,1704381044858,-500.0,0.00032876,2]
[310134949,1704381044869,-500.0,0.00032876,2]
[310134950,1704381044880,-771.55,0.00032876,2]
[310134951,1704381044891,-500.0,0.00032876,2]
[310134952,1704381044901,-605.75,0.00032876,2]
[310134953,1704381044910,-500.0,0.00032876,2]
[310134954,1704381044920,-500.0,0.00032876,2]
[310134955,1704381044930,-500.0,0.00032876,2]
[310134956,1704381044939,-500.0,0.00032876,2]
[310134957,1704381044949,-500.0,0.00032876,2]
[310134958,1704381044958,-1394.76,0.00032876,2]
[310134959,1704381044969,-752.85,0.00032876,2]
[310134960,1704381044978,-536.45687569,0.00032876,2]
[310134961,1704381044987,-500.0,0.00032876,2]
[310134962,1704381044997,-500.0,0.00032876,2]
[310134963,1704381045006,-500.0,0.00032876,2]
[310134964,1704381045016,-500.0,0.00032876,2]
[310134965,1704381045026,-500.0,0.00032876,2]
[310134966,1704381045035,-500.0,0.00032876,2]
[310134967,1704381045045,-500.0,0.00032876,2]
[310134968,1704381045054,-500.0,0.00032876,2]
[310134969,1704381045063,-500.0,0.00032876,2]
[310134970,1704381045073,-646.8,0.00032876,2]
[310134971,1704381045083,-500.0,0.00032876,2]
[310134972,1704381045094,-500.0,0.00032876,2]
[310134973,1704381045103,-500.0,0.00032876,2]
[310134974,1704381045113,-500.0,0.00032876,2]
[310134975,1704381045122,-500.0,0.00032876,2]
[310134976,1704381045132,-500.0,0.00032876,2]
[310134978,1704381045142,-698.57,0.00032876,2]
[310134980,1704381045151,-712.76,0.00032876,2]
[310134982,1704381045161,-500.0,0.00032876,2]
[310134984,1704381045170,-604.93,0.00032876,2]
[310134986,1704381045181,-525.99,0.00032876,2]
[310134988,1704381045190,-500.0,0.00032876,2]
[310134991,1704381045201,-500.0,0.00032876,2]
[310134992,1704381045212,-500.0,0.00032876,2]
[310134997,1704381045430,-160.12014314,0.00032876,2]
[310134998,1704381045441,-500.0,0.00032876,2]
[310134999,1704381045450,-500.0,0.00032876,2]
[310135001,1704381045460,-500.0,0.00032876,2]
[310135002,1704381045469,-500.0,0.00032876,2]
[310135003,1704381045479,-155.9644856,0.00032876,2]
[310135004,1704381045488,-500.0,0.00032876,2]
[310135005,1704381045498,-1149.84,0.00032876,2]
[310135006,1704381045507,-500.0,0.00032876,2]
[310135007,1704381045517,-500.0,0.00032876,2]
[310135008,1704381045526,-500.0,0.00032876,2]
[310135009,1704381045537,-500.0,0.00032876,2]
[310135010,1704381045547,-620.95,0.00032876,2]
[310135011,1704381045558,-314.36207589,0.00032876,2]
[310135012,1704381045567,-500.0,0.00032876,2]
[310135013,1704381045577,-500.0,0.00032876,2]
[310135014,1704381045587,-1448.38,0.00032876,2]
[310135015,1704381045596,-500.0,0.00032876,2]
[310135016,1704381045607,-592.41,0.00032876,2]
[310135017,1704381045617,-500.0,0.00032876,2]
[310135018,1704381045627,-442.2591568,0.00032876,2]
[310135019,1704381045637,-500.0,0.00032876,2]
[310135020,1704381045646,-500.0,0.00032876,2]
[310135021,1704381045656,-500.0,0.00032876,2]
[310135022,1704381045666,-500.0,0.00032876,2]
[310135023,1704381045678,-864.54,0.00032876,2]
[310135024,1704381045688,-318.94660071,0.00032876,2]
[310135025,1704381045698,-500.0,0.00032876,2]
[310135026,1704381045708,-741.72,0.00032876,2]
[310135027,1704381045718,-359.69883056,0.00032876,2]
[310135028,1704381045728,-643.6526591,0.00032876,2]
[310135029,1704381045738,-500.0,0.00032876,2]
[310135030,1704381045748,-500.0,0.00032876,2]
[310135031,1704381045758,-757.58,0.00032876,2]
[310135032,1704381045768,-580.7054765,0.00032876,2]
[310135033,1704381045777,-500.0,0.00032876,2]
[310135034,1704381045787,-500.0,0.00032876,2]
[310135035,1704381045797,-500.0,0.00032876,2]
[310135036,1704381045806,-500.0,0.00032876,2]
[310135037,1704381045817,-500.0,0.00032876,2]
[310135038,1704381045826,-506.58,0.00032876,2]
[310135039,1704381045836,-500.0,0.00032876,2]
[310135040,1704381045846,-500.0,0.00032876,2]
[310135041,1704381045856,-534.03,0.00032876,2]
[310135042,1704381045867,-500.0,0.00032876,2]
[310135043,1704381045878,-711.66,0.00032876,2]
[310135044,1704381045888,-500.0,0.00032876,2]
[310135045,1704381045899,-500.0,0.00032876,2]
[310135046,1704381045909,-500.0,0.00032876,2]
[310135047,1704381045918,-500.0,0.00032876,2]
[310135048,1704381045930,-232.16,0.00032876,2]
[310135049,1704381045943,-500.0,0.00032876,2]
[310135050,1704381045954,-500.0,0.00032876,2]
[310135051,1704381045966,-500.0,0.00032876,2]
[310135052,1704381045977,-500.0,0.00032876,2]
[310135053,1704381045988,-500.0,0.00032876,2]
[310135054,1704381045999,-500.0,0.00032876,2]
[310135055,1704381046010,-500.0,0.00032876,2]
[310135056,1704381046022,-500.0,0.00032876,2]
[310135057,1704381046034,-312.77700209,0.00032876,2]
[310135058,1704381046044,-1520.97,0.00032876,2]
[310135059,1704381046053,-500.0,0.00032876,2]
[310135060,1704381046063,-1426.18,0.00032876,2]
[310135061,1704381046074,-1259.68,0.00032876,2]
[310135062,1704381046085,-505.22,0.00032876,2]
[310135063,1704381046095,-500.0,0.00032876,2]
[310135064,1704381046106,-523.81,0.00032876,2]
[310135065,1704381046117,-547.74,0.00032876,2]
[310135066,1704381046130,-500.0,0.00032876,2]
[310135067,1704381046143,-867.86,0.00032876,2]
[310135068,1704381046155,-603.02,0.00032876,2]
[310135069,1704381046167,-500.0,0.00032876,2]
[310135070,1704381046179,-500.0,0.00032876,2]
[310135071,1704381046191,-500.0,0.00032876,2]
[310135072,1704381046201,-1125.55,0.00032876,2]
[310135073,1704381046211,-432.10922072,0.00032876,2]
[310135074,1704381046222,-500.0,0.00032876,2]
[310135075,1704381046232,-500.0,0.00032876,2]
[310135076,1704381046242,-500.0,0.00032876,2]
[310135077,1704381046253,-500.0,0.00032876,2]
[310135078,1704381046263,-570.27,0.00032876,2]
[310135079,1704381046274,-507.79,0.00032876,2]
[310135080,1704381046284,-500.0,0.00032876,2]
[310135081,1704381046294,-500.0,0.00032876,2]
[310135082,1704381046304,-500.0,0.00032876,2]
[310135083,1704381046314,-553.88849245,0.00032876,2]
[310135084,1704381046324,-500.0,0.00032876,2]
[310135085,1704381046334,-733.59,0.00032876,2]
[310135086,1704381046343,-500.0,0.00032876,2]
[310135087,1704381046354,-500.0,0.00032876,2]
[310135088,1704381046364,-1129.17,0.00032876,2]
[310135089,1704381046373,-508.94457952,0.00032876,2]
[310135090,1704381046384,-500.0,0.00032876,2]
[310135091,1704381046393,-500.0,0.00032876,2]
[310135092,1704381046404,-500.0,0.00032876,2]
[310135093,1704381046413,-500.0,0.00032876,2]
[310135094,1704381046425,-500.0,0.00032876,2]
[310135095,1704381046434,-388.78723644,0.00032876,2]
[310135096,1704381046445,-747.19,0.00032876,2]
[310135097,1704381046456,-500.0,0.00032876,2]
[310135098,1704381046467,-500.0,0.00032876,2]
[310135099,1704381046479,-550.56721632,0.00032876,2]
[310135100,1704381046489,-500.0,0.00032876,2]
[310135101,1704381046499,-500.0,0.00032876,2]
[310135102,1704381046510,-500.0,0.00032876,2]
[310135103,1704381046519,-500.0,0.00032876,2]
[310135104,1704381046530,-500.0,0.00032876,2]
[310135105,1704381046540,-500.0,0.00032876,2]
[310135106,1704381046550,-1630.99,0.00032876,2]
[310135107,1704381046560,-500.0,0.00032876,2]
[310135108,1704381046570,-500.0,0.00032876,2]
[310135109,1704381046583,-500.0,0.00032876,2]
[310135110,1704381046594,-277.89672637,0.00032876,2]
[310135111,1704381046604,-500.0,0.00032876,2]
[310135112,1704381046615,-500.0,0.00032876,2]
[310135113,1704381046626,-500.0,0.00032876,2]
[310135114,1704381046637,-500.0,0.00032876,2]
[310135115,1704381046647,-574.44142881,0.00032876,2]
[310135116,1704381046658,-500.0,0.00032876,2]
[310135117,1704381046668,-500.0,0.00032876,2]
[310135118,1704381046680,-500.0,0.00032876,2]
[310135119,1704381046690,-500.0,0.00032876,2]
[310135120,1704381046702,-517.4,0.00032876,2]
[310135121,1704381046715,-500.0,0.00032876,2]
[310135122,1704381046725,-500.0,0.00032876,2]
[310135123,1704381046736,-982.74,0.00032876,2]
[310135124,1704381046746,-500.0,0.00032876,2]
[310135125,1704381046759,-718.84,0.00032876,2]
[310135126,1704381046770,-500.0,0.00032876,2]
[310135127,1704381046781,-500.0,0.00032876,2]
[310135128,1704381046791,-1335.59,0.00032876,2]
[310135129,1704381046801,-808.92,0.00032876,2]
[310135130,1704381046811,-500.0,0.00032876,2]
[310135131,1704381046822,-500.0,0.00032876,2]
[310135132,1704381046834,-500.0,0.00032876,2]
[310135133,1704381046844,-500.0,0.00032876,2]
[310135134,1704381046853,-500.0,0.00032876,2]
[310135135,1704381046862,-500.0,0.00032876,2]
[310135136,1704381046872,-500.0,0.00032876,2]
[310135137,1704381046885,-601.08080787,0.00032876,2]
[310135138,1704381046895,-766.36,0.00032876,2]
[310135139,1704381046904,-500.0,0.00032876,2]